bitfinex/quotes_ETHUSD_20241003
["timestamp","ask_amount","ask_price","bid_price","bid_amount"]
[1727919641224,0.07638218,2395.0,2394.8,4.1757]
[1727919641427,4.17485,2395.3,2394.9,0.42592125]
[1727919641620,0.07440007,2395.2,2394.9,0.42592125]
[1727919641867,4.17485,2395.3,2394.9,0.42592125]
[1727919642024,4.24945007,2395.2,2394.9,0.42592125]
[1727919643022,0.07440007,2395.2,2394.9,0.42592125]
[1727919643229,0.7611,2395.4,2395.0,4.63541413]
[1727919643443,0.07440182,2395.3,2395.1,4.25860509]
[1727919643717,8.2278,2395.8,2395.0,0.08349234]
[1727919644012,0.0744767,2395.2,2395.0,0.4350782]
[1727919644313,4.24964111,2395.1,2394.7,4.95033]
[1727919644482,4.24964111,2395.1,2394.8,0.57972732]
[1727919645217,0.07445111,2395.1,2394.8,0.57972732]
[1727919645771,4.24971111,2395.1,2394.8,0.57972732]
[1727919646008,8.42505111,2395.1,2394.8,0.57972732]
[1727919646191,4.24971111,2395.1,2394.8,0.57972732]
[1727919647076,0.07445111,2395.1,2394.8,4.75540732]
[1727919647313,0.07445111,2395.1,2394.9,0.97893949]
[1727919648010,4.96908,2395.3,2394.9,0.97893949]
[1727919648219,0.07439786,2395.2,2394.9,0.97893949]
[1727919648528,4.17503,2395.2,2394.9,0.97893949]
[1727919648825,0.07436421,2395.1,2394.9,0.97893949]
[1727919648988,0.07436421,2395.1,2395.0,0.57343468]
[1727919649430,0.07436421,2395.1,2394.8,0.57972732]
[1727919650129,4.17543,2395.0,2394.5,7.99126]
[1727919650297,8.42533994,2395.0,2394.5,7.99126]
[1727919650908,4.24983994,2395.0,2394.6,0.08351269]
[1727919651233,4.24983994,2395.0,2394.6,5.83861416]
[1727919651530,4.17579,2394.8,2394.3,4.96061]
[1727919652027,4.25028414,2394.7,2394.3,0.7841]
[1727919652239,8.35226,2394.6,2394.1,4.98061]
[1727919652399,0.07425144,2394.5,2394.1,4.98061]
[1727919653141,0.07425144,2394.5,2394.1,0.8037]
[1727919653299,5.01096144,2394.5,2394.0,4.17701]
[1727919653642,5.01096144,2394.5,2394.1,5.094034]
[1727919654590,0.83465144,2394.5,2394.1,5.094034]
[1727919654939,0.83465144,2394.5,2394.1,9.270884]
[1727919655442,0.83465144,2394.5,2394.2,4.17675]
[1727919655650,0.07425144,2394.5,2394.2,4.17675]
[1727919655946,4.9489,2394.7,2394.3,0.9270714]
[1727919656149,0.07383657,2394.4,2394.3,0.9270714]
[1727919656355,4.9489,2394.7,2394.3,0.9270714]
[1727919656506,0.07383657,2394.4,2394.3,0.9270714]
[1727919656707,4.9489,2394.7,2394.3,0.9270714]
[1727919657322,0.07387164,2394.6,2394.3,5.1036314]
[1727919657522,0.07387164,2394.6,2394.3,4.17656]
[1727919660278,0.07387164,2394.6,2394.1,4.17681]
[1727919660665,4.17624,2394.5,2394.1,4.17681]
[1727919660866,0.07393222,2394.4,2394.1,4.17681]
[1727919661279,0.07393222,2394.4,2394.1,8.35365]
[1727919661588,4.94889,2394.7,2394.2,4.17665]
[1727919661748,0.07391764,2394.3,2394.1,4.17681]
[1727919662086,4.17638,2394.5,2394.0,4.17708]
[1727919662388,0.07394902,2394.4,2394.0,4.17708]
[1727919663499,0.07394902,2394.4,2394.1,0.917121]
[1727919663882,0.07394902,2394.4,2394.2,4.17667]
[1727919664093,0.773,2394.7,2394.3,4.94095]
[1727919664285,0.07396957,2394.6,2394.4,5.09652257]
[1727919664458,0.07396957,2394.6,2394.4,4.1764]
[1727919665402,0.07396957,2394.6,2394.5,4.17623]
[1727919665611,4.17563,2394.9,2394.5,4.17623]
[1727919665760,0.0740336,2394.6,2394.4,4.17633]
[1727919666093,0.07396121,2394.5,2394.4,5.0243582]
[1727919666401,0.07396121,2394.5,2394.4,0.8480482]
[1727919666555,4.17588,2394.7,2394.4,0.8480482]
[1727919666759,0.07399299,2394.5,2394.4,0.8480482]
[1727919666958,0.7984,2395.0,2394.4,5.0243682]
[1727919667200,0.8036,2395.2,2394.8,4.17561]
[1727919667364,0.8036,2395.2,2394.8,4.25911509]
[1727919667574,0.8036,2395.2,2394.8,4.17561]
[1727919667787,0.7525,2395.4,2394.9,4.17543]
[1727919667991,4.92723,2395.4,2394.9,4.2589291]
[1727919668296,4.17493,2395.3,2394.9,1.13408158]
[1727919668496,4.17493,2395.3,2394.9,1.05058248]
[1727919668692,4.17493,2395.3,2394.7,0.7944]
[1727919668693,4.17526,2395.1,2394.7,0.7944]
[1727919668887,8.34998,2395.3,2394.8,4.1757]
[1727919669197,4.17498,2395.3,2394.9,0.50536064]
[1727919669400,4.17503,2395.2,2394.9,0.50536064]
[1727919669701,4.17503,2395.2,2394.7,5.05377639]
[1727919670200,4.17503,2395.2,2394.8,4.17569]
[1727919670401,4.17503,2395.2,2394.8,4.25919554]
[1727919670896,4.17503,2395.2,2394.8,4.25919505]
[1727919671103,4.17503,2395.2,2394.9,0.92294651]
[1727919671507,4.17521,2395.1,2394.9,0.92294651]
[1727919672081,4.92728,2395.4,2394.9,0.92294651]
[1727919672292,4.17485,2395.3,2394.9,1.00644647]
[1727919672480,4.17485,2395.3,2394.9,5.18194595]
[1727919672803,0.7525,2395.4,2395.0,0.9357566]
[1727919673007,10.44,2395.8,2394.4,11.88136667]
[1727919673008,4.17566,2394.9,2394.4,7.48]
[1727919673311,4.17629,2394.5,2394.1,0.8217]
[1727919673959,4.17614,2394.6,2394.1,4.9985]
[1727919674310,4.17625,2394.5,2394.1,4.9985]
[1727919674988,4.17625,2394.5,2394.1,0.8217]
[1727919675508,0.07419997,2394.4,2394.1,0.8217]
[1727919675706,0.07419997,2394.4,2394.1,1.739273]
[1727919676010,0.07419997,2394.4,2394.2,4.17666]
[1727919676503,0.07406856,2394.3,2394.1,4.99854]
[1727919676709,0.07406856,2394.3,2394.0,3.0]
[1727919676876,0.826,2394.4,2394.0,8.33494067]
[1727919677211,0.07404754,2394.3,2394.0,11.87452265]
[1727919677369,0.07404754,2394.3,2394.2,4.17676]
[1727919677577,4.96455,2394.6,2394.1,5.78941407]
[1727919677792,4.96455,2394.6,2394.2,1.34870167]
[1727919678006,0.07370518,2394.5,2394.1,5.78941407]
[1727919679103,4.25003518,2394.5,2394.1,0.779]
[1727919679320,4.17659,2394.3,2393.9,7.17728]
[1727919679680,0.07351702,2394.2,2393.9,7.17728]
[1727919679879,8.35266,2394.5,2394.0,4.17703]
[1727919680124,0.07360619,2394.4,2394.0,4.17703]
[1727919680380,4.25001619,2394.4,2394.0,5.83191767]
[1727919681100,0.07360619,2394.4,2394.0,5.83191767]
[1727919681509,4.25001619,2394.4,2394.0,1.65488767]
[1727919681818,4.25001619,2394.4,2393.8,4.97064]
[1727919681819,0.8175,2394.3,2393.8,4.97064]
[1727919682031,4.17676,2394.2,2393.8,4.97064]
[1727919682321,0.07360325,2394.1,2393.8,4.97064]
[1727919682520,0.07360325,2394.1,2393.8,5.97163347]
[1727919683220,0.8175,2394.3,2393.9,4.1772]
[1727919683377,0.0735968,2394.0,2393.9,4.1772]
[1727919683583,4.99416,2394.3,2393.8,5.97163347]
[1727919683785,0.0735968,2394.0,2393.9,4.17728]
[1727919684022,4.99414,2394.3,2393.8,5.97163347]
[1727919684195,0.07349552,2394.0,2393.9,4.17728]
[1727919684396,0.07349552,2394.0,2393.8,5.97163347]
[1727919684397,4.17677,2394.2,2393.8,4.97064]
[1727919684622,0.07368718,2394.0,2393.8,5.56780335]
[1727919684941,0.07366157,2393.9,2393.8,5.56780335]
[1727919685322,4.99409,2394.3,2393.8,5.56780335]
[1727919685502,0.07376174,2393.9,2393.8,4.97064]
[1727919685844,4.99754,2394.5,2393.9,4.17727]
[1727919686003,4.17597,2394.7,2394.2,4.17667]
[1727919686349,4.17597,2394.7,2394.2,5.03319666]
[1727919686498,0.07392953,2394.6,2394.2,4.94967]
[1727919686703,4.25008953,2394.6,2394.2,4.94967]
[1727919686922,0.07392953,2394.6,2394.2,5.91287712]
[1727919687662,0.07392953,2394.6,2394.5,0.8068]
[1727919687843,0.07392953,2394.6,2394.5,8.61653809]
[1727919688141,4.17503,2395.2,2394.7,4.17571]
[1727919688446,4.97575,2395.3,2394.8,4.17566]
[1727919688616,0.06428531,2395.1,2394.7,4.17571]
[1727919688806,4.23919427,2395.2,2394.8,0.9898545]
[1727919689143,0.06418814,2395.1,2394.8,0.9898545]
[1727919689642,0.06418814,2395.1,2394.9,0.60840638]
[1727919689853,0.06418814,2395.1,2395.0,0.08349881]
[1727919690003,4.17489,2395.3,2394.9,0.88969881]
[1727919690205,0.06430202,2395.1,2395.0,0.50652388]
[1727919690438,4.17489,2395.3,2395.0,0.50652388]
[1727919690651,0.06431008,2395.1,2395.0,0.50652388]
[1727919690948,0.06436773,2395.1,2395.0,0.50652388]
[1727919691101,4.17469,2395.4,2395.0,4.68187388]
[1727919691306,0.06444308,2395.3,2395.0,4.68187388]
[1727919691719,0.06444308,2395.3,2395.2,4.17501]
[1727919692045,0.06444308,2395.3,2395.1,4.81568316]
[1727919692247,0.06444308,2395.3,2395.1,0.55715727]
[1727919692565,0.06445829,2395.2,2394.9,3.8062]
[1727919692771,0.06445829,2395.2,2394.9,0.88970001]
[1727919693073,4.99615,2395.3,2394.9,0.08350106]
[1727919693271,0.06475819,2395.2,2394.8,4.7257]
[1727919693578,4.99615,2395.3,2394.9,0.970269]
[1727919693723,0.8213,2395.3,2394.7,0.8012]
[1727919693932,4.23991431,2395.2,2394.7,4.97708]
[1727919694252,4.23991431,2395.2,2394.8,0.8516662]
[1727919694562,0.06477431,2395.2,2394.9,0.63350562]
[1727919694753,0.06477431,2395.2,2395.1,4.93739]
[1727919694940,0.06477431,2395.2,2395.1,5.57088043]
[1727919695137,4.17427,2395.7,2395.2,4.1749]
[1727919695138,8.34857,2395.7,2395.2,4.1749]
[1727919695337,8.34857,2395.7,2395.2,4.25838922]
[1727919695338,4.17432,2395.6,2395.2,4.25838922]
[1727919696165,4.17427,2395.7,2394.8,7.48]
[1727919696166,0.7592,2395.5,2394.8,7.48]
[1727919696474,4.17494,2395.3,2394.8,7.56350604]
[1727919696678,8.34992,2395.3,2394.8,12.99447164]
[1727919696971,4.17504,2395.2,2394.8,8.7352556]
[1727919697129,0.7592,2395.1,2394.3,9.15478469]
[1727919697331,4.1758,2394.8,2394.3,4.9895]
[1727919697670,4.1758,2394.8,2394.3,10.53286891]
[1727919698032,4.1758,2394.8,2394.3,6.35636891]
[1727919698231,4.1758,2394.8,2394.4,4.17637]
[1727919699164,4.17546,2395.0,2394.5,4.2597058]
[1727919699363,4.17546,2395.0,2394.5,4.17619]
[1727919699665,4.17546,2395.0,2394.5,5.22943689]
[1727919699881,4.94856,2395.3,2394.7,4.17575]
[1727919700174,4.94856,2395.3,2394.8,4.25920454]
[1727919700355,4.17502,2395.2,2394.8,5.15477245]
[1727919700674,4.17502,2395.2,2394.8,0.97907245]
[1727919700969,0.06437984,2395.1,2394.8,0.97907245]
[1727919701325,0.06437984,2395.1,2394.7,4.98136]
[1727919703071,4.23956984,2395.1,2394.7,4.98136]
[1727919703274,0.06437984,2395.1,2394.7,4.98136]
[1727919703837,0.06437984,2395.1,2394.7,4.17586]
[1727919703989,0.06437984,2395.1,2394.3,16.56307089]
[1727919703990,0.8065,2394.4,2393.9,5.46979704]
[1727919704208,0.8065,2394.4,2393.8,0.7733]
[1727919704387,0.06443593,2394.3,2393.8,0.7733]
[1727919704547,0.06443593,2394.3,2394.1,7.71649198]
[1727919704742,0.7747,2394.9,2394.2,4.95646]
[1727919704743,4.95024,2394.9,2394.2,4.95646]
[1727919705084,0.7747,2394.9,2394.4,4.17625]
[1727919705285,0.06465235,2394.8,2394.5,0.08351412]
[1727919705953,0.06465235,2394.8,2394.5,0.50949053]
[1727919706749,0.06465235,2394.8,2394.5,4.68563053]
[1727919707176,5.00659,2395.1,2394.5,0.50949053]
[1727919707362,0.06469046,2394.7,2394.5,4.68566053]
[1727919707569,5.00659,2395.1,2394.6,0.88619105]
[1727919707977,3.53958198,2394.7,2394.0,0.86178469]
[1727919708202,0.7584,2394.0,2393.1,0.7948]
[1727919708359,4.17758,2393.8,2393.1,4.97341]
[1727919708562,4.17735,2393.9,2393.1,4.97341]
[1727919708563,4.17765,2393.7,2393.2,0.497341]
[1727919708866,9.171,2393.5,2392.8,0.7531]
[1727919709211,0.14734925,2393.4,2392.8,0.7531]
[1727919709698,0.14734925,2393.4,2392.5,8.47232198]
[1727919709904,0.08351418,2393.3,2392.5,4.93274]
[1727919710106,4.26195418,2393.3,2392.5,4.93274]
[1727919710275,4.24241256,2393.2,2392.6,3.0]
[1727919710474,0.06380256,2393.2,2392.6,3.0]
[1727919710861,0.14731674,2393.2,2392.5,4.93271]
[1727919711084,0.06380256,2393.2,2392.5,4.93271]
[1727919711267,4.17851,2393.2,2392.5,4.93271]
[1727919711474,4.17851,2393.2,2392.6,0.493271]
[1727919711679,0.06336718,2393.1,2392.6,0.493271]
[1727919712398,0.06336718,2393.1,2392.6,7.672811]
[1727919713312,4.24205718,2393.1,2392.6,3.493271]
[1727919713605,0.14688136,2393.1,2392.6,3.493271]
[1727919713819,4.32557136,2393.1,2392.6,3.493271]
[1727919714762,4.32557136,2393.1,2392.6,7.672771]
[1727919714958,0.14688136,2393.1,2392.7,4.17937]
[1727919715168,0.06336718,2393.1,2392.7,4.17937]
[1727919715660,0.06336718,2393.1,2392.6,3.493271]
[1727919715860,0.06336718,2393.1,2392.6,7.17951]
[1727919717307,0.06336718,2393.1,2392.7,4.17936]
[1727919717866,0.06336718,2393.1,2392.7,4.2629389]
[1727919718066,0.06336718,2393.1,2392.7,4.17936]
[1727919718291,4.17842,2393.3,2392.7,4.17936]
[1727919718602,4.17842,2393.3,2392.7,8.35865]
[1727919718943,0.06269048,2393.2,2392.7,8.35865]
[1727919719112,0.14620466,2393.2,2392.7,4.17929]
[1727919719466,0.14620466,2393.2,2392.7,8.35857]
[1727919719675,0.06269048,2393.2,2392.7,5.390447]
[1727919719869,4.17816,2393.4,2392.7,5.47402335]
[1727919720107,0.06276852,2393.3,2392.7,5.47402335]
[1727919720262,0.06276852,2393.3,2392.7,5.390447]
[1727919720469,4.17833,2393.3,2392.8,4.17919]
[1727919720803,0.06271641,2393.2,2392.8,4.17919]
[1727919721101,4.17833,2393.3,2392.8,4.17919]
[1727919721415,0.06273254,2393.2,2392.8,4.17919]
[1727919721605,4.32488672,2393.2,2392.7,4.17928]
[1727919721987,4.24137254,2393.2,2392.7,4.17928]
[1727919723472,4.24137254,2393.2,2392.7,4.17927]
[1727919723720,0.06273254,2393.2,2392.8,4.17917]
[1727919724079,8.35678,2393.3,2392.7,4.17927]
[1727919724376,0.06278402,2393.2,2392.8,4.17904]
[1727919724575,4.17834,2393.3,2392.8,4.17904]
[1727919724813,0.06276071,2393.1,2392.8,4.17904]
[1727919724999,4.17834,2393.3,2392.8,4.17904]
[1727919725175,0.06273508,2393.0,2392.8,4.17904]
[1727919725371,4.17834,2393.3,2392.8,4.17904]
[1727919725590,0.06270944,2392.9,2392.8,4.17904]
[1727919725823,4.17834,2393.3,2392.8,4.17904]
[1727919725991,0.0626691,2392.9,2392.8,4.17904]
[1727919726327,4.17828,2393.4,2392.9,4.17894]
[1727919726480,4.17843,2393.3,2392.7,4.17923]
[1727919726818,4.26204418,2393.2,2392.7,4.17923]
[1727919727029,4.95765,2393.1,2392.6,7.17954]
[1727919727173,0.08351418,2393.0,2392.6,7.17954]
[1727919727520,4.95765,2393.1,2392.6,7.17954]
[1727919727521,5.04116418,2393.1,2392.6,7.17954]
[1727919727880,5.04116418,2393.1,2392.7,4.17937]
[1727919728077,0.7789,2393.1,2392.7,8.35874]
[1727919728281,0.7789,2393.1,2392.8,4.26266971]
[1727919728518,0.7789,2393.1,2392.9,4.179]
[1727919728921,0.7789,2393.1,2392.8,4.17909]
[1727919729721,0.7789,2393.1,2392.9,4.1789]
[1727919730628,0.7789,2393.1,2392.8,4.17909]
[1727919731133,0.7789,2393.1,2392.8,4.17908]
[1727919731606,0.7789,2393.1,2392.9,4.179]
[1727919731791,0.7789,2393.1,2392.8,4.17918]
[1727919732191,0.7789,2393.1,2392.7,9.569814]
[1727919732519,4.98354,2393.3,2392.8,4.17909]
[1727919732728,4.98354,2393.3,2392.8,5.4360454]
[1727919733090,9.16197,2393.3,2392.8,5.4360454]
[1727919733297,4.98354,2393.3,2392.8,5.4360454]
[1727919733491,9.16197,2393.3,2392.8,5.4360454]
[1727919733792,4.98354,2393.3,2392.8,5.4360454]
[1727919733989,4.17855,2393.2,2392.8,5.4360454]
[1727919734383,4.98354,2393.3,2392.8,5.4360454]
[1727919734701,4.26212418,2393.2,2392.8,4.17909]
[1727919734914,4.98354,2393.3,2392.8,8.35819]
[1727919735082,4.98354,2393.3,2392.8,4.17909]
[1727919735279,9.16201,2393.3,2392.8,4.17909]
[1727919735985,4.17812,2393.5,2392.9,4.93141]
[1727919736326,4.17817,2393.4,2393.0,4.17881]
[1727919736532,4.17817,2393.4,2392.9,4.93141]
[1727919736687,4.17841,2393.3,2392.9,5.01498144]
[1727919736884,4.17841,2393.3,2392.9,4.93141]
[1727919737090,0.8322,2393.2,2392.9,4.17901]
[1727919738305,0.06288226,2393.1,2392.9,4.17901]
[1727919740033,0.06288226,2393.1,2393.0,4.17885]
[1727919740237,0.06288226,2393.1,2393.0,11.51253198]
[1727919740448,0.06288226,2393.1,2393.0,12.14610102]
[1727919740741,0.7939,2393.9,2393.5,4.17797]
[1727919740895,0.7939,2393.9,2393.0,7.97291]
[1727919740896,4.95427,2393.5,2393.0,7.97291]
[1727919741093,4.95427,2393.5,2392.7,3.7935]
[1727919741094,0.08351418,2393.4,2392.7,3.7935]
[1727919741396,4.1786,2393.2,2392.7,7.97284]
[1727919741746,0.8200604,2393.1,2392.7,7.97284]
[1727919742247,0.8200604,2393.1,2392.5,3.53958198]
[1727919742248,4.17888,2393.0,2392.5,5.01002]
[1727919742395,4.17888,2393.0,2392.6,3.0]
[1727919742733,0.06076398,2392.9,2392.6,3.0]
[1727919743897,0.06076398,2392.9,2392.6,7.17953]
[1727919744325,4.938,2393.1,2392.6,11.35898]
[1727919744793,0.06068085,2393.0,2392.6,11.35898]
[1727919744993,0.06068085,2393.0,2392.6,7.17945]
[1727919746091,0.06068085,2393.0,2392.6,4.17945]
[1727919746342,4.23954085,2393.0,2392.6,4.17945]
[1727919746633,4.32305503,2393.0,2392.6,4.17945]
[1727919747943,4.32305503,2393.0,2392.5,4.17962]
[1727919749738,4.32305503,2393.0,2392.4,4.17977]
[1727919749739,4.32305503,2393.0,2392.6,4.17954]
[1727919750517,0.8247,2392.8,2392.4,4.17977]
[1727919750735,4.26289418,2392.7,2392.2,11.66012]
[1727919750912,4.17965,2392.6,2392.1,4.18041]
[1727919751114,0.008,2392.2,2392.1,4.18041]
[1727919751496,0.06779765,2392.2,2392.1,4.18041]
[1727919751801,0.0678515,2392.2,2392.1,4.18041]
[1727919752438,0.008,2392.2,2392.1,4.18041]
[1727919752647,4.1806,2392.0,2391.8,0.86178469]
[1727919752860,4.1806,2392.0,2391.4,2.15343587]
[1727919752861,4.18148,2391.5,2391.1,0.86178469]
[1727919753072,0.008,2391.2,2391.0,0.86178469]
[1727919753273,0.008,2391.2,2390.9,0.86178469]
[1727919753449,0.95764321,2391.4,2390.9,2.21527292]
[1727919753450,0.008,2391.0,2390.9,2.21527292]
[1727919753654,0.008,2391.0,2390.8,5.86677469]
[1727919753843,0.008,2391.0,2390.9,0.86178469]
[1727919754175,0.008,2391.0,2390.9,1.78479212]
[1727919754477,0.008,2391.0,2390.9,0.92300743]
[1727919755568,0.008,2391.0,2390.8,5.00499]
[1727919755982,0.008,2391.0,2390.7,3.0]
[1727919758193,0.008,2391.0,2390.6,8.36586]
[1727919758331,0.008,2391.0,2390.6,4.1829]
[1727919758684,0.008,2391.0,2390.6,8.36586]
[1727919758831,0.008,2391.0,2390.6,9.6344742]
[1727919759034,0.008,2391.0,2390.8,4.18268]
[1727919759284,0.008,2391.0,2390.8,4.18259]
[1727919759578,0.008,2391.0,2390.8,8.36518]
[1727919759875,0.008,2391.0,2390.7,4.18286]
[1727919761889,0.008,2391.0,2390.6,4.18292]
[1727919762057,0.8083,2391.0,2390.6,9.28439731]
[1727919762265,0.008,2390.7,2390.6,5.10144731]
[1727919763594,0.008,2390.7,2390.6,8.64102929]
[1727919764993,0.7548,2391.4,2390.8,4.1827]
[1727919765157,0.05840229,2391.3,2391.0,4.18229]
[1727919765543,0.008,2391.1,2391.0,4.18229]
[1727919765749,0.06644194,2391.1,2391.0,5.38111128]
[1727919767391,0.05844194,2391.1,2391.0,9.2702469]
[1727919767693,0.05844194,2391.1,2391.0,9.18661128]
[1727919768056,0.008,2391.2,2391.1,7.18217]
[1727919768349,0.008,2391.2,2391.1,8.10083113]
[1727919776702,0.008,2391.2,2391.1,5.10083113]
[1727919776894,0.7842,2391.2,2391.1,4.18217]
[1727919777069,0.84304482,2391.2,2391.1,4.18217]
[1727919777620,0.06684482,2391.2,2391.1,4.18217]
[1727919777967,0.008,2391.2,2391.1,4.18217]
[1727919779070,0.008,2391.2,2391.1,4.95127]
[1727919779686,0.008,2391.2,2391.1,5.864626]
[1727919782179,0.008,2391.2,2391.1,4.18217]
[1727919783509,0.008,2391.2,2391.1,4.26580619]
[1727919784096,0.008,2391.2,2391.1,4.18217]
[1727919784472,0.008,2391.2,2391.1,4.26580517]
[1727919784680,0.008,2391.2,2391.1,4.18217]
[1727919784908,0.008,2391.2,2391.1,5.13698701]
[1727919785585,0.008,2391.2,2391.1,5.95148701]
[1727919786224,0.008,2391.2,2391.1,9.84882354]
[1727919786388,0.008,2391.2,2391.1,9.76519206]
[1727919787372,0.008,2391.2,2391.1,9.41785553]
[1727919787579,0.008,2391.2,2391.1,9.76514707]
[1727919787884,0.008,2391.2,2391.1,9.41785553]
[1727919788087,0.008,2391.2,2391.1,9.76512512]
[1727919788314,0.8003,2392.1,2391.1,9.76512512]
[1727919788315,0.008,2391.4,2391.3,8.55192]
[1727919788619,0.008,2392.0,2391.9,4.18077]
[1727919788824,0.008,2392.0,2391.5,7.90968198]
[1727919789020,0.008,2392.0,2391.6,3.0]
[1727919789021,0.8003,2391.9,2391.6,3.0]
[1727919789177,0.008,2391.7,2391.3,11.66167]
[1727919789377,0.008,2391.4,2391.3,4.18167]
[1727919789606,0.06107971,2391.4,2391.3,4.18167]
[1727919791521,0.008,2391.4,2391.3,4.18167]
[1727919791830,0.06102057,2391.4,2391.3,4.18167]
[1727919795943,0.008,2391.4,2391.3,4.18167]
[1727919796739,0.008,2391.4,2391.3,8.97424639]
[1727919796955,0.06110231,2391.4,2391.3,11.91157518]
[1727919797106,0.008,2391.4,2391.3,11.91157518]
[1727919798954,0.008,2391.4,2391.3,13.25667518]
[1727919800923,0.008,2391.4,2391.3,8.91157518]
[1727919801121,0.8268,2391.4,2391.3,4.18167]
[1727919801327,0.8268,2391.4,2391.0,4.18221]
[1727919801576,0.8188,2391.4,2391.1,4.18213]
[1727919801859,0.05304349,2391.3,2391.1,4.18213]
[1727919802027,0.008,2391.2,2391.1,4.18213]
[1727919802213,0.05301781,2391.2,2391.1,8.36426]
[1727919802537,0.008,2391.3,2391.1,7.18213]
[1727919802737,0.05301229,2391.2,2391.1,7.18213]
[1727919803125,0.008,2391.3,2391.1,7.18213]
[1727919803331,0.05298471,2391.2,2391.1,11.36418]
[1727919803661,0.008,2391.3,2391.1,11.36418]
[1727919803811,0.05287038,2391.2,2391.1,7.18209]
[1727919804019,0.008,2391.3,2391.1,7.18209]
[1727919804257,0.008,2391.3,2391.2,4.182]
[1727919806765,0.008,2391.3,2391.2,5.75854567]
[1727919808647,0.008,2391.3,2391.2,5.84217311]
[1727919808848,0.008,2391.3,2391.2,5.75854567]
[1727919809133,0.008,2391.3,2391.2,4.182]
[1727919810124,0.008,2391.3,2391.1,11.36417]
[1727919810352,0.008,2391.3,2391.0,5.04412469]
[1727919810676,0.7901,2391.2,2391.0,4.18234]
[1727919810967,0.008,2391.1,2390.9,5.04414469]
[1727919811140,0.008,2391.1,2390.9,4.18236]
[1727919812460,0.008,2391.1,2391.0,4.18235]
[1727919813293,0.06070526,2391.1,2391.0,5.10499947]
[1727919813453,0.05270526,2391.1,2391.0,5.86559947]
[1727919813646,0.008,2391.3,2391.0,5.86559947]
[1727919813647,0.008,2391.3,2391.0,5.10499947]
[1727919813878,0.05258297,2391.1,2391.0,4.18235]
[1727919814145,0.008,2391.3,2391.0,4.18235]
[1727919814703,0.05262481,2391.2,2391.0,4.18235]
[1727919814988,0.008,2391.1,2391.0,4.18235]
[1727919815146,0.06054628,2391.1,2390.9,8.36479]
[1727919815361,0.008,2391.1,2390.9,8.36479]
[1727919815565,0.052602,2391.0,2390.9,8.36479]
[1727919816207,0.052602,2391.0,2390.7,5.16196667]
[1727919816208,0.052602,2391.0,2390.8,4.18267]
[1727919816364,0.008,2390.9,2390.8,4.18267]
[1727919816762,0.06060731,2390.9,2390.8,4.18267]
[1727919818592,0.06060731,2390.9,2390.6,5.04469469]
[1727919818797,0.06060731,2390.9,2390.7,4.18282]
[1727919819412,0.05260731,2390.9,2390.7,4.18282]
[1727919819812,0.008,2390.7,2390.6,4.18291]
[1727919819980,0.06057354,2390.8,2390.7,4.18287]
[1727919820185,0.008,2390.8,2390.7,4.18287]
[1727919820809,0.06052509,2390.8,2390.7,4.18287]
[1727919821109,0.0604671,2390.8,2390.7,9.45996481]
[1727919821315,0.0604671,2390.8,2390.7,9.37631665]
[1727919823279,0.008,2390.8,2390.7,9.37631665]
[1727919824409,0.06053372,2390.8,2390.7,9.37631665]
[1727919824633,0.008,2390.8,2390.7,9.37631665]
[1727919825122,0.06044469,2390.8,2390.7,9.37631665]
[1727919825423,0.008,2390.8,2390.7,9.37631665]
[1727919826087,0.06044469,2390.8,2390.7,9.37631665]
[1727919828126,0.06044469,2390.8,2390.7,10.19021665]
[1727919828611,0.008,2390.8,2390.7,10.19021665]
[1727919828816,0.06040713,2390.8,2390.7,10.19021665]
[1727919829023,0.008,2390.8,2390.7,10.19021665]
[1727919829234,0.06040713,2390.8,2390.7,10.19021665]
[1727919832834,0.008,2390.8,2390.7,9.37631665]
[1727919833003,0.06040713,2390.8,2390.7,9.37631665]
[1727919833203,0.06040713,2390.8,2390.7,7.72245198]
[1727919833616,0.06040713,2390.8,2390.7,3.53958198]
[1727919834743,0.06040713,2390.8,2390.7,7.72245198]
[1727919835945,0.06040713,2390.8,2390.7,7.8060924]
[1727919835946,0.008,2390.8,2390.7,7.8060924]
[1727919836098,0.008,2390.8,2390.7,10.01694683]
[1727919836302,0.008,2390.8,2390.7,9.93331069]
[1727919836995,0.008,2390.8,2390.7,10.74781069]
[1727919837799,0.06029224,2390.8,2390.7,10.74781069]
[1727919838940,0.06029224,2390.8,2390.7,13.74781069]
[1727919839329,0.008,2390.8,2390.7,5.47535871]
[1727919839531,0.008,2390.8,2390.7,7.18287]
[1727919839960,0.06049033,2390.8,2390.7,7.18287]
[1727919840471,0.06049033,2390.8,2390.7,3.0]
[1727919840852,0.06049033,2390.8,2390.7,8.50107]
[1727919841056,0.008,2391.0,2390.7,7.73287]
[1727919841269,0.008,2391.0,2390.9,11.27210198]
[1727919843173,0.008,2391.0,2390.9,12.13388667]
[1727919844398,0.008,2391.3,2391.2,4.182]
[1727919844756,0.0589771,2391.3,2391.2,4.182]
[1727919844960,0.008,2391.3,2391.2,4.182]
[1727919845605,0.05899031,2391.3,2391.2,4.182]
[1727919845784,0.008,2391.3,2391.2,4.182]
[1727919845990,0.0589771,2391.3,2391.2,4.182]
[1727919846164,0.008,2391.3,2391.2,4.182]
[1727919846365,0.05898403,2391.3,2391.2,4.182]
[1727919846611,0.008,2391.3,2391.2,4.182]
[1727919846768,0.05898403,2391.3,2391.2,4.182]
[1727919846969,0.008,2391.3,2391.2,4.182]
[1727919847171,0.05898403,2391.3,2391.2,4.182]
[1727919847371,0.008,2391.3,2391.2,4.182]
[1727919847874,0.05898403,2391.3,2391.2,4.182]
[1727919849762,0.05898403,2391.3,2391.0,3.0]
[1727919850006,0.7751,2391.2,2391.1,4.18216]
[1727919850175,0.7751,2391.2,2391.0,4.18233]
[1727919850377,0.7751,2391.2,2390.9,4.18245]
[1727919850378,0.82605655,2391.2,2390.9,4.18245]
[1727919850578,0.85861418,2391.2,2390.9,4.18245]